Workbook

Sheet الملخص
A3: م | B3: بيان الاعمال | C3: المبنى | Q3: الاجمالي
C4: مبنى 1 | D4: مبنى 2 | E4: مبنى 3 | F4: مبنى 4 | G4: مبنى 5 | H4: مبنى 6 | I4: مبنى 7 | J4: مبنى 8 | K4: مبنى 9 | L4: مبنى 10 | M4: مبنى 11 | N4: مبنى 12 | O4: مبنى 13 | P4: مبنى 14
A5: 1 | B5: اعمال الحفر والردم | C5: 1313505 | D5: 3149370 | E5: 773010 | F5: 1258540 | G5: 1405350 | H5: 1495850 | I5: 359950 | J5: 1195075 | K5: 365612 | L5: 231995 | M5: 413060 | N5: 27910 | O5: 175370 | P5: 2289450
A6: 2 | B6: اعمال الخرسانات العادية | C6: 971110 | D6: 1056400 | E6: 591480 | F6: 788600 | G6: 777140 | H6: 870710 | I6: 229990 | J6: 367185 | K6: 274090 | L6: 146450 | M6: 176970 | N6: 10904 | O6: 88254 | P6: 491310
A7: 3 | B7: اعمال الخرسانات المسلحه | C7: 6451124 | D7: 7522180 | E7: 2149097 | F7: 4636834 | G7: 4201960 | H7: 4389969 | I7: 1098408 | J7: 1620645 | K7: 897141 | L7: 569143 | M7: 1273138 | N7: 228337 | O7: 264982 | P7: 4122437
A8: 4 | B8: اعمال المباني | C8: 77433 | D8: 395640 | E8: 553200 | F8: 1142970 | G8: 690790 | H8: 611520 | I8: 311880 | J8: 317240 | K8: 240465 | L8: 172585 | M8: 158620 | N8: 11170 | O8: 120328 | P8: 1154635
A9: 5 | B9: اعمال الستائر | H9: 50000
A10: 6
A11: 7

Sheet الاعمال
A3: البند | B3: بيان الاعمال | C3: المباني | Q3: الاجمالي | R3: نسبة التأمينات | S3: الأجور التقديرية
C4: مبنى 1 | D4: مبنى 2 | E4: مبنى 3 | F4: مبنى 4 | G4: مبنى 5 | H4: مبنى 6 | I4: مبنى 7 | J4: مبنى 8 | K4: مبنى 9 | L4: مبنى 10 | M4: مبنى 11 | N4: مبنى 12 | O4: مبنى 13 | P4: مبنى 14
A5: 1 | B5: اعمال الحفر والردم | C5: 550830 | D5: 1315800 | E5: 314760 | F5: 636400 | G5: 735300 | H5: 756800 | I5: 146200 | J5: 481600 | K5: 150501 | L5: 95030 | M5: 168560 | N5: 1060 | O5: 70520 | P5: 809260
A6: 2 | C6: 330000 | D6: 479250 | E6: 211200 | F6: 365640 | G6: 396000 | H6: 290250 | I6: 99000 | J6: 337500 | K6: 99000 | L6: 62040 | M6: 112200 | N6: 6600 | O6: 49500 | P6: 555060
A7: 3 | C7: 432675 | D7: 1354320 | E7: 247050 | F7: 256500 | G7: 274050 | H7: 448800 | I7: 114750 | J7: 375975 | K7: 116111 | L7: 74925 | M7: 132300 | N7: 20250 | O7: 55350 | P7: 635850
P8: 116960
P9: 80520
P10: 91800
A11: الاجمالي | C11: =SUM(C5:C10) -> 1313505 | D11: =SUM(D5:D10) -> 3149370 | E11: 773010 | F11: 1258540 | G11: 1405350 | H11: 1495850 | I11: 359950 | J11: 1195075 | K11: 365612 | L11: 231995 | M11: 413060 | N11: 27910 | O11: 175370 | P11: 2289450
A12: 4 | B12: اعمال الخرسانات العادية | C12: 422530 | D12: 872320 | E12: =120*1363 -> 163560 | F12: 292500 | G12: 354380 | H12: 395270 | I12: 68150 | J12: 156745 | K12: =70*1363 -> 95410 | L12: 40890 | M12: 95410 | N12: 10904 | O12: 24534 | P12: 299860
A13: 5 | C13: 209000 | D13: 81510 | E13: 171380 | F13: 219450 | G13: 184965 | H13: 41040 | I13: 73150 | J13: 86735 | K13: 78375 | L13: 36575 | M13: 33440 | O13: 28215 | P13: 15675
A14: 6 | C14: 256700 | D14: 58890 | E14: 123820 | F14: 158550 | G14: 133635 | H14: 198550 | I14: 52850 | J14: 62665 | K14: 56625 | L14: 26425 | M14: 30200 | O14: 20385 | P14: 11325
A15: 7 | C15: 82880 | D15: 43680 | E15: 132720 | F15: 3300 | G15: 104160 | H15: 143450 | I15: 35840 | J15: 61040 | K15: 43680 | L15: 42560 | M15: 17920 | O15: 15120 | P15: 17360
A17: الاجمالي | C17: =SUM(C12:C16) -> 971110 | D17: 1056400 | E17: 591480 | F17: 673800 | G17: 777140 | H17: 778310 | I17: 229990 | J17: 367185 | K17: 274090 | L17: 146450 | M17: 176970 | N17: 10904 | O17: 88254 | P17: 344220
A18: 8 | B18: اعمال الخرسانات المسلحه | C18: 1405170 | D18: 2983500 | E18: 627725 | F18: 964440 | G18: 1098915 | H18: 1404000 | I18: 245700 | J18: 596700 | K18: 245700 | L18: 180150 | M18: 360300 | N18: 55920 | O18: 70200 | P18: 990825
A19: 9 | C19: 4171985 | D19: 2504880 | E19: =280*4565 -> 1278200 | F19: =715*4550 -> 3253250 | G19: 2944425 | H19: 2795625 | I19: 805140 | J19: 849870 | K19: 603855 | L19: =80*4565 -> 365200 | M19: 684750 | N19: 156555 | O19: 178920 | P19: 2022240
A20: 10 | C20: 83145 | D20: 1586560 | E20: 10800 | F20: =140*1372 -> 192080 | G20: 158620 | H20: 190344 | I20: 47568 | J20: 174075 | K20: 47586 | L20: 23793 | M20: 164640 | N20: 15862 | O20: 15862 | P20: 37960
A21: 11 | C21: 298080 | D21: 130000 | E21: 137200 | F21: 36720 | M21: 63448 | P21: 158620
A22: الاجمالي | C22: =SUM(C18:C21) -> 5958380 | D22: 7204940 | E22: 2053925 | F22: 4446490 | G22: 4201960 | H22: 4389969 | I22: 1098408 | J22: 1620645 | K22: 897141 | L22: 569143 | M22: 1273138 | N22: 228337 | O22: 264982 | P22: 3209645
B23: اعمال الستائر | H23: 50000
B24: الاجمالي | C24: =SUM(C23) -> 0 | D24: =SUM(D23) -> 0 | E24: 0 | F24: 0 | G24: 0 | H24: 50000 | I24: 0 | J24: 0 | K24: 0 | L24: 0 | M24: 0 | N24: 0 | O24: 0 | P24: 0
